[Event "*** MasterClass Titled Tuesday Blitz"]
[Site "Chess.com"]
[Date "2017.09.05"]
[Round "3"]
[White "Peroncio"]
[Black "gmcorrales"]
[Result "0-1"]
[WhiteElo "2413"]
[BlackElo "2674"]
[TimeControl "180+2"]
[EndTime "13:41:36 PDT"]
[Termination "gmcorrales won by resignation"]

1. e4 {[%clk 0:03:01.9]} 1... c6 {[%clk 0:02:58.1]} 2. d4 {[%clk 0:03:02.4]}
2... d5 {[%clk 0:02:59.3]} 3. exd5 {[%clk 0:03:03.9]} 3... cxd5 {[%clk
0:03:01.2]} 4. c4 {[%clk 0:03:05.4]} 4... Nf6 {[%clk 0:03:01.7]} 5. Nc3 {[%clk
0:03:06.7]} 5... Nc6 {[%clk 0:03:03]} 6. Bg5 {[%clk 0:03:07.6]} 6... Be6 {[%clk
0:02:58.5]} 7. Bxf6 {[%clk 0:02:55.3]} 7... exf6 {[%clk 0:03:00.4]} 8. c5 {[%clk
0:02:56.7]} 8... Be7 {[%clk 0:02:59.1]} 9. Bb5 {[%clk 0:02:50]} 9... O-O {[%clk
0:02:58.9]} 10. Nge2 {[%clk 0:02:51.4]} 10... f5 {[%clk 0:02:59.6]} 11. O-O
{[%clk 0:02:48.4]} 11... Bf6 {[%clk 0:03:00.7]} 12. Qd2 {[%clk 0:02:44.6]} 12...
g5 {[%clk 0:03:01.4]} 13. Rad1 {[%clk 0:02:38.6]} 13... f4 {[%clk 0:03:02.2]}
14. f3 {[%clk 0:02:28.7]} 14... Kg7 {[%clk 0:03:00.9]} 15. Ba4 {[%clk 0:02:21]}
15... Qd7 {[%clk 0:02:56.7]} 16. b4 {[%clk 0:02:18.3]} 16... a6 {[%clk
0:02:54.9]} 17. a3 {[%clk 0:02:18.7]} 17... Rfe8 {[%clk 0:02:54.7]} 18. Bc2
{[%clk 0:02:13]} 18... Bf5 {[%clk 0:02:51.2]} 19. Bb3 {[%clk 0:02:12.1]} 19...
Be6 {[%clk 0:02:08.6]} 20. Na4 {[%clk 0:02:12.1]} 20... Rad8 {[%clk 0:02:08.3]}
21. Rfe1 {[%clk 0:02:05.1]} 21... Ne7 {[%clk 0:02:07.8]} 22. Nb6 {[%clk
0:01:54.3]} 22... Qc7 {[%clk 0:02:08.6]} 23. Ba4 {[%clk 0:01:50.3]} 23... Rf8
{[%clk 0:02:09.3]} 24. Bc2 {[%clk 0:01:48.8]} 24... Nf5 {[%clk 0:02:09.9]} 25.
Bxf5 {[%clk 0:01:48.4]} 25... Bxf5 {[%clk 0:02:11.8]} 26. Nc3 {[%clk 0:01:48.1]}
26... Be6 {[%clk 0:02:12]} 27. a4 {[%clk 0:01:39.1]} 27... h5 {[%clk 0:02:12.5]}
28. b5 {[%clk 0:01:38.3]} 28... axb5 {[%clk 0:02:13.1]} 29. Nxb5 {[%clk
0:01:35.6]} 29... Qb8 {[%clk 0:02:11.9]} 30. Qc2 {[%clk 0:01:25.4]} 30... g4
{[%clk 0:02:07.4]} 31. Nd6 {[%clk 0:01:23.3]} 31... Rxd6 {[%clk 0:02:07.8]} 32.
cxd6 {[%clk 0:01:24.3]} 32... Qxd6 {[%clk 0:02:09.7]} 33. a5 {[%clk 0:01:25]}
33... gxf3 {[%clk 0:02:09.5]} 34. gxf3 {[%clk 0:01:26.1]} 34... Kh6 {[%clk
0:02:08.2]} 35. Kh1 {[%clk 0:01:26]} 35... Qa3 {[%clk 0:02:08.7]} 36. Na4 {[%clk
0:01:08.2]} 36... Qxf3+ {[%clk 0:02:06.7]} 37. Qg2 {[%clk 0:01:09.1]} 37... Qa3
{[%clk 0:02:04.7]} 38. Nc5 {[%clk 0:01:03.1]} 38... Bg4 {[%clk 0:02:04.1]} 39.
Rd3 {[%clk 0:01:04.1]} 39... Qxa5 {[%clk 0:02:04.4]} 40. Rf1 {[%clk 0:01:00.9]}
40... b6 {[%clk 0:01:52.9]} 41. Rxf4 {[%clk 0:00:16.6]} 41... Bg5 {[%clk
0:01:53.9]} 42. Rxg4 {[%clk 0:00:09]} 42... hxg4 {[%clk 0:01:54.5]} 43. Nb3
{[%clk 0:00:09.1]} 43... Qe1+ {[%clk 0:01:50]} 44. Qg1 {[%clk 0:00:06.4]} 44...
Qe4+ {[%clk 0:01:50.6]} 45. Qg2 {[%clk 0:00:07.9]} 45... Qxd3 {[%clk 0:01:51.5]}
0-1

[Event "*** MasterClass Titled Tuesday Blitz"]
[Site "Chess.com"]
[Date "2017.09.05"]
[Round "3"]
[White "Kirill_Klukin"]
[Black "Alex_Molchanov"]
[Result "1/2-1/2"]
[WhiteElo "2514"]
[BlackElo "2502"]
[TimeControl "180+2"]
[EndTime "13:41:36 PDT"]
[Termination "Game drawn by agreement"]

1. d4 {[%clk 0:03:01.9]} 1... Nf6 {[%clk 0:03:00.1]} 2. Nf3 {[%clk 0:03:02.9]}
2... e6 {[%clk 0:02:59.6]} 3. g3 {[%clk 0:03:03.3]} 3... b6 {[%clk 0:03:00.1]}
4. Bg2 {[%clk 0:03:04.7]} 4... Bb7 {[%clk 0:03:01.7]} 5. O-O {[%clk 0:03:06.3]}
5... Be7 {[%clk 0:03:02.5]} 6. c4 {[%clk 0:03:07.8]} 6... O-O {[%clk 0:03:03.6]}
7. Nc3 {[%clk 0:03:09.3]} 7... Ne4 {[%clk 0:03:04.4]} 8. Qc2 {[%clk 0:03:07.4]}
8... Nxc3 {[%clk 0:03:04.9]} 9. Qxc3 {[%clk 0:03:08.2]} 9... Be4 {[%clk
0:03:05.3]} 10. Nd2 {[%clk 0:02:56.8]} 10... Bxg2 {[%clk 0:03:05.2]} 11. Kxg2
{[%clk 0:02:58.7]} 11... c6 {[%clk 0:03:00.7]} 12. e4 {[%clk 0:02:53.5]} 12...
d5 {[%clk 0:03:01.4]} 13. cxd5 {[%clk 0:02:46]} 13... cxd5 {[%clk 0:03:01.2]}
14. e5 {[%clk 0:02:47.1]} 14... Nd7 {[%clk 0:03:00.5]} 15. Qd3 {[%clk
0:02:45.2]} 15... Rc8 {[%clk 0:02:52.5]} 16. Nf3 {[%clk 0:02:46.3]} 16... Nb8
{[%clk 0:02:49.5]} 17. h4 {[%clk 0:02:45.7]} 17... h6 {[%clk 0:02:50.3]} 18. Bd2
{[%clk 0:02:42]} 18... Qd7 {[%clk 0:02:50.5]} 19. Rac1 {[%clk 0:02:40.2]} 19...
Rxc1 {[%clk 0:02:49.1]} 20. Rxc1 {[%clk 0:02:40.6]} 20... Rc8 {[%clk 0:02:51]}
21. Rxc8+ {[%clk 0:02:29.7]} 21... Qxc8 {[%clk 0:02:51.8]} 22. Qc3 {[%clk
0:02:30.5]} 22... Qxc3 {[%clk 0:02:45.7]} 23. Bxc3 {[%clk 0:02:06.7]} 23... Nc6
{[%clk 0:02:44.6]} 24. Ne1 {[%clk 0:02:00.8]} 24... b5 {[%clk 0:02:33.5]} 25.
Nc2 {[%clk 0:01:41.4]} 25... Kf8 {[%clk 0:02:24.9]} 26. Kf3 {[%clk 0:01:40.8]}
26... Ke8 {[%clk 0:02:24.9]} 27. Ke2 {[%clk 0:01:41.2]} 27... Kd7 {[%clk
0:02:26]} 28. Kd3 {[%clk 0:01:42.1]} 28... Kc7 {[%clk 0:02:16.9]} 29. Bd2 {[%clk
0:01:38.2]} 29... Kb6 {[%clk 0:02:12.3]} 30. h5 {[%clk 0:01:36.8]} 30... a5
{[%clk 0:02:12.2]} 31. b3 {[%clk 0:01:30.9]} 31... b4 {[%clk 0:02:07.8]} 32. g4
{[%clk 0:01:29.7]} 32... Kb5 {[%clk 0:02:02.7]} 33. f4 {[%clk 0:01:29.6]} 33...
a4 {[%clk 0:02:01.3]} 34. g5 {[%clk 0:01:26.4]} 34... Bf8 {[%clk 0:01:56.6]} 35.
Ne3 {[%clk 0:00:59.6]} 35... axb3 {[%clk 0:01:41.3]} 36. axb3 {[%clk 0:01:01.5]}
36... Na5 {[%clk 0:01:43.1]} 37. Kc2 {[%clk 0:01:02.5]} 37... Nc6 {[%clk
0:01:44.7]} 38. Kd3 {[%clk 0:00:58.1]} 38... Na5 {[%clk 0:01:45.8]} 39. Kc2
{[%clk 0:00:36.8]} 1/2-1/2

[Event "*** MasterClass Titled Tuesday Blitz"]
[Site "Chess.com"]
[Date "2017.09.05"]
[Round "3"]
[White "GrigorGrigorov"]
[Black "GGuseinov"]
[Result "1-0"]
[WhiteElo "2601"]
[BlackElo "2684"]
[TimeControl "180+2"]
[EndTime "13:41:43 PDT"]
[Termination "GrigorGrigorov won by resignation"]

1. d4 {[%clk 0:03:01.5]} 1... Nf6 {[%clk 0:03:00.9]} 2. c4 {[%clk 0:03:01.4]}
2... g6 {[%clk 0:03:02.3]} 3. Nc3 {[%clk 0:02:58.9]} 3... Bg7 {[%clk 0:03:03.6]}
4. e4 {[%clk 0:03:00]} 4... d6 {[%clk 0:03:04.9]} 5. Be2 {[%clk 0:03:00.8]} 5...
O-O {[%clk 0:03:06]} 6. Be3 {[%clk 0:03:01.3]} 6... c5 {[%clk 0:03:02]} 7. d5
{[%clk 0:03:01.6]} 7... b5 {[%clk 0:03:01.9]} 8. cxb5 {[%clk 0:03:02.2]} 8... a6
{[%clk 0:03:03.2]} 9. a4 {[%clk 0:03:01.6]} 9... axb5 {[%clk 0:02:59]} 10. Bxb5
{[%clk 0:02:58.4]} 10... Na6 {[%clk 0:02:48]} 11. Nf3 {[%clk 0:02:52.3]} 11...
Nc7 {[%clk 0:02:48.7]} 12. h3 {[%clk 0:02:37.7]} 12... Ba6 {[%clk 0:02:45.8]}
13. O-O {[%clk 0:02:35.1]} 13... Qb8 {[%clk 0:02:45.6]} 14. Qd3 {[%clk
0:02:25.1]} 14... Bxb5 {[%clk 0:02:44.2]} 15. axb5 {[%clk 0:02:25.2]} 15... Nd7
{[%clk 0:02:45.4]} 16. Bg5 {[%clk 0:02:17.3]} 16... Re8 {[%clk 0:02:46.2]} 17.
Nd2 {[%clk 0:02:17]} 17... Qb7 {[%clk 0:02:45.1]} 18. Nb3 {[%clk 0:02:10.1]}
18... Bxc3 {[%clk 0:02:30.1]} 19. bxc3 {[%clk 0:02:05.7]} 19... Qxb5 {[%clk
0:02:07.8]} 20. Qxb5 {[%clk 0:01:34.2]} 20... Nxb5 {[%clk 0:02:09.7]} 21. Rxa8
{[%clk 0:01:35.1]} 21... Rxa8 {[%clk 0:02:09.8]} 22. c4 {[%clk 0:01:34.9]} 22...
Na3 {[%clk 0:01:47.5]} 23. Ra1 {[%clk 0:01:28.6]} 23... Nb6 {[%clk 0:01:47.8]}
24. Bxe7 {[%clk 0:01:13.8]} 24... Nbxc4 {[%clk 0:01:45.5]} 25. e5 {[%clk
0:01:14.4]} 25... dxe5 {[%clk 0:01:29.1]} 26. d6 {[%clk 0:01:08.9]} 26... Ra7
{[%clk 0:01:10.8]} 27. Nxc5 {[%clk 0:01:08.4]} 27... Nb6 {[%clk 0:01:07.1]} 28.
d7 {[%clk 0:01:03.2]} 28... Nxd7 {[%clk 0:01:06.2]} 29. Nxd7 {[%clk 0:01:04.2]}
29... Rxd7 {[%clk 0:01:08.1]} 30. Bxa3 {[%clk 0:01:05.7]} 30... f6 {[%clk
0:01:07.4]} 31. Bc5 {[%clk 0:01:05.9]} 31... Rd5 {[%clk 0:00:57.9]} 32. Be3
{[%clk 0:01:06.5]} 32... h5 {[%clk 0:00:59]} 33. Ra7 {[%clk 0:01:04.6]} 33... h4
{[%clk 0:00:58.6]} 34. Kf1 {[%clk 0:01:01.1]} 34... Rb5 {[%clk 0:00:58.4]} 35.
Ke2 {[%clk 0:01:01.6]} 35... Rb4 {[%clk 0:00:59.7]} 36. Kd3 {[%clk 0:00:56.4]}
36... g5 {[%clk 0:00:52.1]} 37. Bc5 {[%clk 0:00:54.5]} 37... Rb1 {[%clk
0:00:38.2]} 38. Ke4 {[%clk 0:00:53.3]} 38... Rg1 {[%clk 0:00:39.7]} 39. Kf5
{[%clk 0:00:52.6]} 39... Rxg2 {[%clk 0:00:41.2]} 40. Kg6 {[%clk 0:00:53.1]} 1-0

[Event "*** MasterClass Titled Tuesday Blitz"]
[Site "Chess.com"]
[Date "2017.09.05"]
[Round "3"]
[White "Ilja_Semjonovs"]
[Black "workhard91"]
[Result "1-0"]
[WhiteElo "2353"]
[BlackElo "2285"]
[TimeControl "180+2"]
[EndTime "13:41:49 PDT"]
[Termination "Ilja_Semjonovs won by resignation"]

1. d4 {[%clk 0:02:59.7]} 1... Nf6 {[%clk 0:03:00.7]} 2. Nf3 {[%clk 0:03:00.5]}
2... e6 {[%clk 0:03:01.8]} 3. Bg5 {[%clk 0:03:01.2]} 3... c5 {[%clk 0:03:01.3]}
4. Bxf6 {[%clk 0:02:59.9]} 4... Qxf6 {[%clk 0:03:00.8]} 5. e3 {[%clk 0:03:00.8]}
5... Nc6 {[%clk 0:02:51]} 6. c3 {[%clk 0:03:00.1]} 6... d5 {[%clk 0:02:51.7]} 7.
Bd3 {[%clk 0:02:59.4]} 7... Bd6 {[%clk 0:02:51.2]} 8. Nbd2 {[%clk 0:03:00.3]}
8... O-O {[%clk 0:02:51.2]} 9. O-O {[%clk 0:03:01.3]} 9... e5 {[%clk 0:02:34.1]}
10. dxe5 {[%clk 0:02:58.6]} 10... Nxe5 {[%clk 0:02:34.4]} 11. Nxe5 {[%clk
0:02:59.4]} 11... Qxe5 {[%clk 0:02:33.9]} 12. Nf3 {[%clk 0:02:57.3]} 12... Qe7
{[%clk 0:02:35]} 13. h3 {[%clk 0:02:56]} 13... b6 {[%clk 0:02:07.8]} 14. Re1
{[%clk 0:02:55.7]} 14... Bb7 {[%clk 0:02:08.4]} 15. Qc2 {[%clk 0:02:56.5]} 15...
h6 {[%clk 0:02:09.3]} 16. e4 {[%clk 0:02:57.5]} 16... c4 {[%clk 0:01:28.9]} 17.
Bf1 {[%clk 0:02:37.5]} 17... dxe4 {[%clk 0:01:26.2]} 18. Nd2 {[%clk 0:02:38.4]}
18... Rfe8 {[%clk 0:00:54]} 19. Bxc4 {[%clk 0:02:15.8]} 19... Qe5 {[%clk
0:00:49.8]} 20. g3 {[%clk 0:02:13.3]} 20... Qf5 {[%clk 0:00:46.6]} 21. Bf1
{[%clk 0:02:08.7]} 21... Bc5 {[%clk 0:00:36.6]} 22. Nb3 {[%clk 0:01:50]} 22...
Bd6 {[%clk 0:00:31.4]} 23. Bg2 {[%clk 0:01:43.1]} 23... Rad8 {[%clk 0:00:29.6]}
24. Nd2 {[%clk 0:01:35.5]} 24... Bc5 {[%clk 0:00:24.9]} 25. Nxe4 {[%clk
0:00:59.4]} 25... Re5 {[%clk 0:00:13.5]} 26. b4 {[%clk 0:00:45.2]} 26... Rde8
{[%clk 0:00:06.1]} 27. bxc5 {[%clk 0:00:44.5]} 27... Bxe4 {[%clk 0:00:07.3]} 28.
Bxe4 {[%clk 0:00:44.5]} 28... Rxe4 {[%clk 0:00:09.2]} 29. Rxe4 {[%clk
0:00:43.8]} 29... Rxe4 {[%clk 0:00:11.1]} 30. Kg2 {[%clk 0:00:42.6]} 30... Qe6
{[%clk 0:00:12]} 31. cxb6 {[%clk 0:00:41.4]} 31... axb6 {[%clk 0:00:13.9]} 32.
Rd1 {[%clk 0:00:39.4]} 32... Re2 {[%clk 0:00:14.9]} 33. Rd8+ {[%clk 0:00:39.9]}
1-0

[Event "*** MasterClass Titled Tuesday Blitz"]
[Site "Chess.com"]
[Date "2017.09.05"]
[Round "3"]
[White "biostatistician"]
[Black "tomsishere"]
[Result "0-1"]
[WhiteElo "2422"]
[BlackElo "2262"]
[TimeControl "180+2"]
[EndTime "13:41:57 PDT"]
[Termination "tomsishere won by resignation"]

1. d4 {[%clk 0:03:01.9]} 1... Nf6 {[%clk 0:03:00.2]} 2. Nf3 {[%clk 0:03:03.8]}
2... g6 {[%clk 0:03:01.1]} 3. c4 {[%clk 0:03:05.2]} 3... Bg7 {[%clk 0:03:02]} 4.
Nc3 {[%clk 0:03:07.1]} 4... d5 {[%clk 0:03:03]} 5. cxd5 {[%clk 0:03:09]} 5...
Nxd5 {[%clk 0:03:03.9]} 6. e4 {[%clk 0:03:10.9]} 6... Nxc3 {[%clk 0:03:05.1]} 7.
bxc3 {[%clk 0:03:12.8]} 7... c5 {[%clk 0:03:06.2]} 8. Be3 {[%clk 0:03:13.3]}
8... Qa5 {[%clk 0:03:07.1]} 9. Qd2 {[%clk 0:03:13.9]} 9... Nc6 {[%clk
0:03:08.4]} 10. Rc1 {[%clk 0:03:14.1]} 10... cxd4 {[%clk 0:03:08.3]} 11. cxd4
{[%clk 0:03:16]} 11... Qxd2+ {[%clk 0:03:09.4]} 12. Kxd2 {[%clk 0:03:17.7]}
12... O-O {[%clk 0:03:10.5]} 13. d5 {[%clk 0:03:19]} 13... Rd8 {[%clk
0:03:11.5]} 14. Ke1 {[%clk 0:03:20.2]} 14... Na5 {[%clk 0:03:11.4]} 15. Bg5
{[%clk 0:03:20.2]} 15... Bd7 {[%clk 0:03:11.3]} 16. Bd3 {[%clk 0:03:19.3]} 16...
f5 {[%clk 0:03:12.3]} 17. e5 {[%clk 0:03:08.9]} 17... Rdc8 {[%clk 0:03:13.1]}
18. Ke2 {[%clk 0:03:04.2]} 18... e6 {[%clk 0:03:08.8]} 19. Bd2 {[%clk
0:02:27.1]} 19... b6 {[%clk 0:02:56]} 20. Ba6 {[%clk 0:02:26.7]} 20... Rxc1
{[%clk 0:02:10.7]} 21. Rxc1 {[%clk 0:02:28.6]} 21... exd5 {[%clk 0:02:11.8]} 22.
Rc7 {[%clk 0:02:22.2]} 22... Ba4 {[%clk 0:02:12]} 23. Bb7 {[%clk 0:02:00.1]}
23... Nxb7 {[%clk 0:01:46.2]} 24. Rxb7 {[%clk 0:01:59.9]} 24... Re8 {[%clk
0:01:43.9]} 25. Rxa7 {[%clk 0:01:58.7]} 25... Bb5+ {[%clk 0:01:43.4]} 26. Ke3
{[%clk 0:01:55.4]} 26... Bh6+ {[%clk 0:01:12.7]} 27. Kd4 {[%clk 0:01:52.4]}
27... Bf8 {[%clk 0:01:12]} 28. Be3 {[%clk 0:01:27.3]} 28... Rc8 {[%clk
0:00:54.7]} 29. e6 {[%clk 0:01:13.8]} 29... Bg7+ {[%clk 0:00:35.8]} 30. Kxd5
{[%clk 0:01:12.9]} 30... Rd8+ {[%clk 0:00:28.8]} 31. Rd7 {[%clk 0:01:07.6]}
31... Bxd7 {[%clk 0:00:29.8]} 32. exd7 {[%clk 0:01:07.7]} 32... Rxd7+ {[%clk
0:00:31.4]} 33. Kc6 {[%clk 0:01:08]} 33... Ra7 {[%clk 0:00:32.1]} 34. Bxb6
{[%clk 0:01:06.6]} 34... Rxa2 {[%clk 0:00:32.4]} 35. Kd5 {[%clk 0:01:08.1]}
35... h6 {[%clk 0:00:32.4]} 36. h4 {[%clk 0:01:05.9]} 36... Kf7 {[%clk 0:00:31]}
37. Be3 {[%clk 0:01:05.1]} 37... f4 {[%clk 0:00:27.9]} 38. Bxf4 {[%clk
0:01:02.6]} 38... Rxf2 {[%clk 0:00:28.4]} 0-1

[Event "*** MasterClass Titled Tuesday Blitz"]
[Site "Chess.com"]
[Date "2017.09.05"]
[Round "3"]
[White "Oneofmyturns"]
[Black "ChessQueen"]
[Result "1-0"]
[WhiteElo "2475"]
[BlackElo "2586"]
[TimeControl "180+2"]
[EndTime "13:42:15 PDT"]
[Termination "Oneofmyturns won by resignation"]

1. d4 {[%clk 0:03:01.9]} 1... Nf6 {[%clk 0:03:00.2]} 2. c4 {[%clk 0:03:02.8]}
2... e6 {[%clk 0:03:01.2]} 3. Nc3 {[%clk 0:03:04]} 3... Bb4 {[%clk 0:03:01.5]}
4. Qc2 {[%clk 0:03:05.2]} 4... d5 {[%clk 0:03:00.7]} 5. cxd5 {[%clk 0:03:01.9]}
5... exd5 {[%clk 0:03:01.5]} 6. Nf3 {[%clk 0:03:02.8]} 6... O-O {[%clk
0:03:00.8]} 7. Bg5 {[%clk 0:03:04.3]} 7... h6 {[%clk 0:02:58.5]} 8. Bh4 {[%clk
0:03:00.7]} 8... Be6 {[%clk 0:02:59.4]} 9. e3 {[%clk 0:03:00.6]} 9... c5 {[%clk
0:03:00.2]} 10. dxc5 {[%clk 0:02:56.1]} 10... Nbd7 {[%clk 0:03:00.5]} 11. Be2
{[%clk 0:02:55]} 11... g5 {[%clk 0:02:51.8]} 12. Bg3 {[%clk 0:02:55.5]} 12...
Ne4 {[%clk 0:02:50.6]} 13. O-O {[%clk 0:02:46.5]} 13... Bxc3 {[%clk 0:02:42.7]}
14. bxc3 {[%clk 0:02:48.4]} 14... Rc8 {[%clk 0:02:43.4]} 15. Nd4 {[%clk
0:02:27.7]} 15... Ndxc5 {[%clk 0:02:14.2]} 16. c4 {[%clk 0:01:55.8]} 16... Nxg3
{[%clk 0:02:07.1]} 17. hxg3 {[%clk 0:01:53.7]} 17... dxc4 {[%clk 0:01:54.9]} 18.
Bxc4 {[%clk 0:01:39.9]} 18... Bxc4 {[%clk 0:01:49.5]} 19. Qxc4 {[%clk
0:01:41.8]} 19... Ne6 {[%clk 0:01:50.2]} 20. Qd3 {[%clk 0:01:35.6]} 20... Nxd4
{[%clk 0:01:49.8]} 21. exd4 {[%clk 0:01:37.5]} 21... Qd5 {[%clk 0:01:49.8]} 22.
Rfc1 {[%clk 0:01:28.3]} 22... Rfd8 {[%clk 0:01:39.3]} 23. Rxc8 {[%clk
0:01:23.6]} 23... Rxc8 {[%clk 0:01:40.4]} 24. Rd1 {[%clk 0:01:25]} 24... b5
{[%clk 0:01:38.4]} 25. a4 {[%clk 0:01:19.1]} 25... bxa4 {[%clk 0:01:36]} 26. Qa6
{[%clk 0:01:20.4]} 26... Qc6 {[%clk 0:01:26.5]} 27. Qxa7 {[%clk 0:01:19.9]}
27... Ra8 {[%clk 0:01:25.7]} 28. Qe7 {[%clk 0:01:19]} 28... a3 {[%clk
0:00:56.4]} 29. d5 {[%clk 0:01:12.7]} 29... Qa4 {[%clk 0:00:57.3]} 30. Ra1
{[%clk 0:01:08]} 30... a2 {[%clk 0:00:51.3]} 31. Qe2 {[%clk 0:01:06.3]} 31...
Qb3 {[%clk 0:00:48.4]} 32. Qe5 {[%clk 0:00:34.5]} 32... Rd8 {[%clk 0:00:23.3]}
33. d6 {[%clk 0:00:30.8]} 33... Rxd6 {[%clk 0:00:20]} 34. Qxd6 {[%clk
0:00:18.6]} 34... Qb1+ {[%clk 0:00:20.5]} 35. Qd1 {[%clk 0:00:18.9]} 1-0

[Event "*** MasterClass Titled Tuesday Blitz"]
[Site "Chess.com"]
[Date "2017.09.05"]
[Round "3"]
[White "TenisMaster"]
[Black "jncool68"]
[Result "1-0"]
[WhiteElo "2769"]
[BlackElo "2465"]
[TimeControl "180+2"]
[EndTime "13:42:18 PDT"]
[Termination "TenisMaster won by resignation"]

1. d4 {[%clk 0:03:01.9]} 1... Nf6 {[%clk 0:02:59.9]} 2. Bf4 {[%clk 0:03:02.6]}
2... d5 {[%clk 0:02:57.8]} 3. e3 {[%clk 0:03:01.7]} 3... e6 {[%clk 0:02:58.8]}
4. Nd2 {[%clk 0:02:57.2]} 4... Bd6 {[%clk 0:02:59]} 5. Bg3 {[%clk 0:02:57.7]}
5... O-O {[%clk 0:02:57.4]} 6. Ngf3 {[%clk 0:02:57.1]} 6... c5 {[%clk
0:02:58.6]} 7. c3 {[%clk 0:02:58]} 7... Qc7 {[%clk 0:02:58.6]} 8. Bd3 {[%clk
0:02:57.3]} 8... Nbd7 {[%clk 0:02:59.5]} 9. O-O {[%clk 0:01:25.4]} 9... e5
{[%clk 0:02:58.7]} 10. dxe5 {[%clk 0:01:26.1]} 10... Nxe5 {[%clk 0:02:58.7]} 11.
Nxe5 {[%clk 0:01:27.1]} 11... Bxe5 {[%clk 0:03:00.6]} 12. Nf3 {[%clk 0:01:27.9]}
12... Bxg3 {[%clk 0:02:58.7]} 13. hxg3 {[%clk 0:01:29.8]} 13... Bg4 {[%clk
0:02:57.1]} 14. Qa4 {[%clk 0:01:29.4]} 14... b6 {[%clk 0:02:47]} 15. Rfd1 {[%clk
0:01:27]} 15... Rad8 {[%clk 0:02:41.2]} 16. Qf4 {[%clk 0:01:26.7]} 16... Qxf4
{[%clk 0:02:41]} 17. gxf4 {[%clk 0:01:27.7]} 17... Rfe8 {[%clk 0:02:19.8]} 18.
Bb5 {[%clk 0:01:24]} 18... Re7 {[%clk 0:02:17]} 19. a4 {[%clk 0:01:20.1]} 19...
a5 {[%clk 0:01:55.3]} 20. Rd2 {[%clk 0:01:14.6]} 20... Ne4 {[%clk 0:01:52.7]}
21. Rd3 {[%clk 0:01:15.6]} 21... Nf6 {[%clk 0:01:10.3]} 22. Ne5 {[%clk
0:01:15.5]} 22... Bf5 {[%clk 0:01:08.1]} 23. Rd2 {[%clk 0:01:09.4]} 23... Rc7
{[%clk 0:01:00.4]} 24. f3 {[%clk 0:01:03.7]} 24... h5 {[%clk 0:01:00.5]} 25.
Rad1 {[%clk 0:01:02.6]} 25... Rdc8 {[%clk 0:00:52.8]} 26. c4 {[%clk 0:00:53.6]}
26... d4 {[%clk 0:00:46.6]} 27. exd4 {[%clk 0:00:52.8]} 27... cxd4 {[%clk
0:00:46.9]} 28. Rxd4 {[%clk 0:00:54.7]} 28... g6 {[%clk 0:00:38.4]} 29. Rd6
{[%clk 0:00:55.1]} 29... Kg7 {[%clk 0:00:36.3]} 30. Rxb6 {[%clk 0:00:56]} 30...
Be6 {[%clk 0:00:19.6]} 31. b3 {[%clk 0:00:55.1]} 31... Ra7 {[%clk 0:00:17.1]}
32. Rbd6 {[%clk 0:00:54.3]} 32... Rcc7 {[%clk 0:00:17.6]} 33. Rc1 {[%clk
0:00:51.8]} 33... h4 {[%clk 0:00:15.6]} 34. Rcd1 {[%clk 0:00:51.5]} 34... Rab7
{[%clk 0:00:16.1]} 35. R1d4 {[%clk 0:00:51.8]} 35... Ra7 {[%clk 0:00:17]} 36.
Kf2 {[%clk 0:00:52.9]} 36... Ra8 {[%clk 0:00:17.8]} 37. Rd8 {[%clk 0:00:50.5]}
37... Rxd8 {[%clk 0:00:17.5]} 38. Rxd8 {[%clk 0:00:51]} 38... Bf5 {[%clk
0:00:19.2]} 39. Nc6 {[%clk 0:00:48.5]} 39... Bc2 {[%clk 0:00:19.3]} 40. Nxa5
{[%clk 0:00:48.8]} 40... Ra7 {[%clk 0:00:20.2]} 41. b4 {[%clk 0:00:49.6]} 41...
Re7 {[%clk 0:00:18.4]} 42. Nc6 {[%clk 0:00:49.6]} 42... Rc7 {[%clk 0:00:19.2]}
43. a5 {[%clk 0:00:49.7]} 43... Bb3 {[%clk 0:00:19.5]} 44. a6 {[%clk 0:00:49.7]}
44... Bxc4 {[%clk 0:00:20.7]} 45. Bxc4 {[%clk 0:00:50.8]} 45... Rxc6 {[%clk
0:00:22.2]} 46. a7 {[%clk 0:00:52]} 1-0

[Event "*** MasterClass Titled Tuesday Blitz"]
[Site "Chess.com"]
[Date "2017.09.05"]
[Round "3"]
[White "K_A_S_T_O_R"]
[Black "Keranke"]
[Result "1-0"]
[WhiteElo "2608"]
[BlackElo "2687"]
[TimeControl "180+2"]
[EndTime "13:42:20 PDT"]
[Termination "K_A_S_T_O_R won by resignation"]

1. e4 {[%clk 0:03:01.9]} 1... g6 {[%clk 0:02:52]} 2. d4 {[%clk 0:03:02]} 2...
Bg7 {[%clk 0:02:53.4]} 3. Nf3 {[%clk 0:03:03.6]} 3... d6 {[%clk 0:02:54.9]} 4.
Bc4 {[%clk 0:03:04.2]} 4... Nf6 {[%clk 0:02:54.9]} 5. Qe2 {[%clk 0:03:04.6]}
5... O-O {[%clk 0:02:56]} 6. e5 {[%clk 0:03:05.7]} 6... dxe5 {[%clk 0:02:56.9]}
7. dxe5 {[%clk 0:03:06.8]} 7... Nd5 {[%clk 0:02:58.1]} 8. O-O {[%clk 0:03:08]}
8... Nb6 {[%clk 0:02:55.7]} 9. Rd1 {[%clk 0:03:08]} 9... Qe8 {[%clk 0:02:56]}
10. Bb5 {[%clk 0:03:02.3]} 10... Nc6 {[%clk 0:02:54.8]} 11. h3 {[%clk
0:02:59.3]} 11... a6 {[%clk 0:02:50.7]} 12. Bd3 {[%clk 0:02:59.3]} 12... Nb4
{[%clk 0:02:43.4]} 13. Be4 {[%clk 0:02:57.8]} 13... Qb5 {[%clk 0:02:44.4]} 14.
Qe1 {[%clk 0:02:42.7]} 14... Nc6 {[%clk 0:02:14.6]} 15. Nc3 {[%clk 0:02:41.7]}
15... Qc4 {[%clk 0:02:14]} 16. b3 {[%clk 0:02:31.5]} 16... Qe6 {[%clk
0:02:14.7]} 17. Bxc6 {[%clk 0:02:16.6]} 17... Qxc6 {[%clk 0:02:15.2]} 18. Ba3
{[%clk 0:02:18.1]} 18... Re8 {[%clk 0:02:10.2]} 19. Nd4 {[%clk 0:02:10]} 19...
Qd7 {[%clk 0:02:01.1]} 20. e6 {[%clk 0:02:07.1]} 20... fxe6 {[%clk 0:02:00.2]}
21. Nf3 {[%clk 0:02:08.6]} 21... Qc6 {[%clk 0:01:58.4]} 22. Ne5 {[%clk 0:02:09]}
22... Bxe5 {[%clk 0:01:46.1]} 23. Qxe5 {[%clk 0:02:09.6]} 23... Nd7 {[%clk
0:01:47.2]} 24. Rxd7 {[%clk 0:01:57.3]} 24... Bxd7 {[%clk 0:01:41.7]} 25. Rd1
{[%clk 0:01:56.8]} 25... Rf8 {[%clk 0:01:36]} 26. g4 {[%clk 0:01:32.8]} 26...
Rf3 {[%clk 0:01:32.4]} 27. Bb2 {[%clk 0:01:29.5]} 27... Kf7 {[%clk 0:00:34.9]}
28. Ne4 {[%clk 0:01:21.1]} 28... Ke8 {[%clk 0:00:36.2]} 29. Ng5 {[%clk
0:01:12.2]} 29... Rd8 {[%clk 0:00:25.8]} 30. Nxf3 {[%clk 0:01:08.7]} 30... Qxf3
{[%clk 0:00:27.7]} 31. Rd3 {[%clk 0:01:08.1]} 31... Qf8 {[%clk 0:00:26.1]} 32.
Qxc7 {[%clk 0:01:08.6]} 32... Qh6 {[%clk 0:00:21.7]} 33. Be5 {[%clk 0:01:04.3]}
33... Qc1+ {[%clk 0:00:20.4]} 34. Kh2 {[%clk 0:01:02.3]} 34... Qe1 {[%clk
0:00:19]} 35. Bd4 {[%clk 0:00:47.9]} 35... Qe4 {[%clk 0:00:16.9]} 36. Bb6 {[%clk
0:00:45.8]} 36... Kf7 {[%clk 0:00:17.5]} 37. Rd4 {[%clk 0:00:40.1]} 37... Qe2
{[%clk 0:00:10.5]} 38. Rf4+ {[%clk 0:00:41]} 38... Kg7 {[%clk 0:00:10.9]} 39.
Qxd8 {[%clk 0:00:39.9]} 1-0